fUSD/lending_fUSD_20250417
["ID","MTS","AMOUNT","RATE_DAILY","PERIOD"]
[358239800,1744866632141,-1000.0,0.000512,40]
[358239801,1744866632152,-1000.0,0.000512,40]
[358239802,1744866632161,-1000.0,0.000512,40]
[358239803,1744866632171,-1000.0,0.000512,40]
[358239804,1744866632181,-1000.0,0.000512,40]
[358239806,1744866632193,-1000.0,0.000512,40]
[358239808,1744866632203,-1000.0,0.000512,40]
[358239810,1744866632212,-1000.0,0.000512,40]
[358239811,1744866632222,-1000.0,0.000512,40]
[358239813,1744866632232,-1000.0,0.000512,40]
[358239815,1744866632241,-1000.0,0.000512,40]
[358239817,1744866632250,-1000.0,0.000512,40]
[358239819,1744866632259,-1000.0,0.000512,40]
[358239821,1744866632269,-1000.0,0.000512,40]
[358239823,1744866632279,-865.87,0.000512,40]
[358239825,1744866632289,-1000.0,0.000512,40]
[358239827,1744866632299,-3967.0,0.00051637,120]
[358239829,1744866632309,-152.0,0.00051637,120]
[358239831,1744866632318,-865.0,0.00051637,120]
[358239833,1744866632328,-716.912,0.00051863,94]
[358239835,1744866632338,-10156.06588423,0.000519,120]
[358239837,1744866632348,-2331.63923324,0.00051945,15]
[358239868,1744866632745,-308.79,0.00051945,15]
[358239869,1744866632760,-867.21190126,0.00051945,15]
[358239877,1744866637758,-324.1706547,0.00051637,120]
[358239878,1744866637770,-799.8293453,0.00051637,120]
[358239879,1744866637779,-1932.03217086,0.00051945,15]
[358239880,1744866637944,-265.71883021,0.00051945,15]
[358239881,1744866637955,-310.81303942,0.00051945,15]
[358239882,1744866637967,-908.87,0.00052,120]
[358239883,1744866637977,-1250.13,0.00052,120]
[358239884,1744866637987,-1304.72339383,0.00052,120]
[358239885,1744866638002,-695.27660617,0.00052,120]
[358239886,1744866638012,-733.18045391,0.00052,120]
[358239887,1744866638112,-305.93319112,0.00052,120]
[358239888,1744866638125,-472.560984,0.00052,120]
[358239917,1744866639814,-182.45447946,0.00051955,31]
[358239918,1744866639824,-1223.78901531,0.00052,120]
[358239919,1744866639836,-535.85788251,0.00052,120]
[358239920,1744866639847,-1840.0,0.00052,120]
[358239921,1744866639871,-2612.30408965,0.00052,120]
[358239928,1744866641556,-0.01849637,0.00052,120]
[358239929,1744866641651,-1583.37340851,0.00052,120]
[358239930,1744866641667,-692.98247862,0.00052,120]
[358239931,1744866641677,-1000.0,0.00052,12]
[358239932,1744866641686,-1000.0,0.00052,14]
[358239933,1744866641696,-1000.0,0.00052,16]
[358239934,1744866641706,-514.87,0.00052035,2]
[358239935,1744866641716,-500.0,0.00052043,31]
[358239936,1744866641725,-500.0,0.00052043,31]
[358239937,1744866641735,-500.0,0.00052043,31]
[358239938,1744866641746,-500.0,0.00052043,31]
[358239939,1744866641756,-500.0,0.00052043,31]
[358239940,1744866641765,-500.0,0.00052043,31]
[358239941,1744866641775,-617.32450682,0.00052043,31]
[358239942,1744866641784,-500.0,0.00052043,31]
[358239943,1744866641794,-500.0,0.00052043,31]
[358239944,1744866641803,-500.0,0.00052043,31]
[358239945,1744866641813,-500.0,0.00052043,31]
[358239946,1744866641822,-500.0,0.00052043,31]
[358239947,1744866641832,-500.0,0.00052043,31]
[358239948,1744866641841,-500.0,0.00052043,31]
[358239949,1744866641851,-500.0,0.00052043,31]
[358239950,1744866641860,-135759.817203,0.00052044,4]
[358239951,1744866641871,-514.87,0.00052044,2]
[358239952,1744866641882,-16969.9771504,0.00052045,4]
[358239953,1744866641891,-4165.77541048,0.00052045,4]
[358239954,1744866641900,-1486.02,0.00052054,120]
[358239955,1744866641910,-549.83,0.00052054,120]
[358239956,1744866641919,-2728.09,0.00052054,120]
[358239957,1744866641929,-714.16,0.00052054,120]
[358239958,1744866641939,-500.0,0.00052054,120]
[358239959,1744866641949,-500.0,0.00052054,120]
[358239960,1744866641959,-500.0,0.00052054,120]
[358239961,1744866641970,-501.47167339,0.00052054,5]
[358239962,1744866641979,-500.0,0.00052054,120]
[358239963,1744866641988,-500.0,0.00052054,120]
[358239964,1744866641998,-810.14,0.00052054,120]
[358239965,1744866642008,-500.0,0.00052054,120]
[358239966,1744866642017,-791.26,0.00052054,120]
[358239967,1744866642027,-500.0,0.00052054,120]
[358239968,1744866642037,-500.0,0.00052054,120]
[358239970,1744866642046,-500.0,0.00052054,120]
[358239971,1744866642056,-561.07,0.00052054,120]
[358239972,1744866642067,-500.0,0.00052054,120]
[358239973,1744866642077,-500.0,0.00052054,120]
[358239974,1744866642087,-500.0,0.00052054,120]
[358239975,1744866642096,-500.0,0.00052054,120]
[358239976,1744866642105,-1591.48,0.00052054,120]
[358239977,1744866642115,-500.0,0.00052054,120]
[358239978,1744866642124,-554.7068188,0.00052054,120]
[358239979,1744866642133,-10194.96,0.00052054,2]
[358239980,1744866642143,-500.0,0.00052054,120]
[358239981,1744866642153,-500.0,0.00052054,120]
[358239982,1744866642163,-500.0,0.00052054,120]
[358239983,1744866642172,-516.06,0.00052054,120]
[358239984,1744866642183,-500.0,0.00052054,120]
[358239985,1744866642194,-500.0,0.00052054,120]
[358239986,1744866642204,-500.0,0.00052054,120]
[358239987,1744866642214,-527.24,0.00052054,120]
[358239988,1744866642224,-500.0,0.00052054,120]
[358239989,1744866642235,-500.0,0.00052054,120]
[358239990,1744866642245,-500.0,0.00052054,120]
[358239991,1744866642254,-572.9632454,0.00052054,120]
[358239992,1744866642265,-620.67811355,0.00052054,120]
[358239993,1744866642274,-500.0,0.00052054,120]
[358239994,1744866642284,-500.0,0.00052054,120]
[358239995,1744866642293,-500.0,0.00052054,120]
[358239996,1744866642302,-500.0,0.00052054,120]
[358239997,1744866642311,-500.0,0.00052054,120]
[358239998,1744866642321,-500.0,0.00052054,120]
[358239999,1744866642331,-500.0,0.00052054,120]
[358240000,1744866642340,-500.0,0.00052054,120]
[358240001,1744866642349,-500.0,0.00052054,120]
[358240002,1744866642359,-500.0,0.00052054,120]
[358240003,1744866642369,-500.0,0.00052054,120]
[358240004,1744866642380,-500.0,0.00052054,120]
[358240005,1744866642389,-737.3,0.00052054,120]
[358240006,1744866642399,-206.958019,0.00052054,120]
[358240007,1744866642408,-2340.15,0.00052054,120]
[358240008,1744866642418,-607.81,0.00052054,120]
[358240009,1744866642427,-500.0,0.00052054,120]
[358240010,1744866642437,-500.0,0.00052054,120]
[358240011,1744866642447,-713.97,0.00052054,120]
[358240012,1744866642456,-546.74114975,0.00052054,120]
[358240013,1744866642465,-500.0,0.00052054,120]
[358240014,1744866642476,-448.430325,0.00052054,120]
[358240015,1744866642492,-500.0,0.00052054,120]
[358240016,1744866642502,-500.0,0.00052054,120]
[358240017,1744866642513,-500.0,0.00052054,120]
[358240018,1744866642524,-168.462309,0.00052054,120]
[358240019,1744866642535,-500.0,0.00052054,120]
[358240020,1744866642547,-1970.61,0.00052054,120]
[358240022,1744866642557,-500.0,0.00052054,120]
[358240023,1744866642567,-1950.39,0.00052054,120]
[358240024,1744866642576,-1950.39,0.00052054,120]
[358240025,1744866642586,-500.0,0.00052054,120]
[358240026,1744866642595,-500.0,0.00052054,120]
[358240027,1744866642605,-500.0,0.00052054,120]
[358240028,1744866642614,-1000.0,0.00052054,120]
[358240029,1744866642623,-500.0,0.00052054,120]
[358240030,1744866642633,-500.0,0.00052054,120]
[358240031,1744866642643,-500.82,0.00052054,120]
[358240032,1744866642653,-500.0,0.00052054,120]
[358240033,1744866642663,-500.0,0.00052054,120]
[358240036,1744866642673,-500.0,0.00052054,120]
[358240039,1744866642683,-500.0,0.00052054,120]
[358240041,1744866642692,-1639.62,0.00052054,120]
[358240042,1744866642702,-500.0,0.00052054,120]
[358240043,1744866642712,-500.0,0.00052054,120]
[358240044,1744866642722,-500.0,0.00052054,120]
[358240045,1744866642731,-500.0,0.00052054,120]
[358240046,1744866642741,-1186.76,0.00052054,120]
[358240047,1744866642751,-500.0,0.00052054,120]
[358240048,1744866642761,-500.0,0.00052054,120]
[358240049,1744866642770,-794.57,0.00052054,120]
[358240050,1744866642779,-557.77,0.00052054,120]
[358240051,1744866642789,-500.0,0.00052054,120]
[358240052,1744866642798,-1571.37,0.00052054,120]
[358240053,1744866642807,-403.63394611,0.00052054,120]
[358240054,1744866642816,-623.58,0.00052054,120]
[358240055,1744866642826,-2692.53,0.00052054,120]
[358240056,1744866642835,-500.0,0.00052054,120]
[358240057,1744866642845,-500.0,0.00052054,120]
[358240058,1744866642854,-282.22513484,0.00052054,120]
[358240059,1744866642863,-500.0,0.00052054,120]
[358240060,1744866642872,-500.0,0.00052054,120]
[358240061,1744866642882,-500.0,0.00052054,120]
[358240062,1744866642891,-500.0,0.00052054,120]
[358240063,1744866642901,-500.0,0.00052054,120]
[358240064,1744866642911,-916.32,0.00052054,120]
[358240065,1744866642920,-745.67,0.00052054,120]
[358240066,1744866642929,-500.0,0.00052054,120]
[358240067,1744866642939,-2306.19,0.00052054,120]
[358240068,1744866642948,-500.50996824,0.00052054,120]
[358240069,1744866642957,-500.0,0.00052054,14]
[358240070,1744866642966,-500.0,0.00052054,120]
[358240071,1744866642976,-772.21,0.00052054,120]
[358240072,1744866642985,-500.0,0.00052054,120]
[358240073,1744866642994,-510.71,0.00052054,120]
[358240074,1744866643003,-500.0,0.00052054,120]
[358240075,1744866643012,-245.1869437,0.00052054,120]
[358240076,1744866643021,-845.14,0.00052054,120]
[358240077,1744866643029,-500.0,0.00052054,120]
[358240078,1744866643038,-500.0,0.00052054,120]
[358240079,1744866643046,-1634.07,0.00052054,120]
[358240080,1744866643054,-500.0,0.00052054,120]
[358240081,1744866643063,-500.0,0.00052054,120]
[358240082,1744866643071,-1235.27,0.00052054,120]
[358240083,1744866643079,-500.0,0.00052054,120]
[358240084,1744866643087,-500.0,0.00052054,120]
[358240085,1744866643096,-1099.87,0.00052054,35]
[358240086,1744866643105,-579.05015881,0.00052054,120]
[358240088,1744866643113,-629.63,0.00052054,120]
[358240091,1744866643123,-1065.62,0.00052054,120]
[358240092,1744866643331,-500.0,0.00052054,120]
[358240093,1744866643341,-500.0,0.00052054,120]
[358240094,1744866643351,-500.0,0.00052054,2]
[358240095,1744866643360,-378.69633286,0.00052054,120]
[358240096,1744866643370,-1213.5,0.00052054,120]
[358240097,1744866643379,-525.78477097,0.00052054,120]
[358240098,1744866643388,-1119.64,0.00052054,120]
[358240099,1744866643398,-500.0,0.00052054,120]
[358240100,1744866643407,-1134.34,0.00052054,120]
[358240101,1744866643416,-500.0,0.00052054,120]
[358240102,1744866643426,-500.0,0.00052054,120]
[358240103,1744866643435,-500.0,0.00052054,120]
[358240104,1744866643445,-1528.48,0.00052054,120]
[358240105,1744866643454,-497.40465642,0.00052054,120]
[358240106,1744866643463,-1344.89,0.00052054,120]
[358240107,1744866643471,-500.0,0.00052054,120]
[358240108,1744866643479,-4330.97,0.00052054,120]
[358240109,1744866643488,-500.0,0.00052054,14]
[358240110,1744866643496,-500.0,0.00052054,120]
[358240111,1744866643504,-500.0,0.00052054,120]
[358240112,1744866643513,-500.0,0.00052054,120]
[358240113,1744866643522,-523.49,0.00052054,120]
[358240114,1744866643532,-1287.58,0.00052054,120]
[358240115,1744866643542,-1431.32,0.00052054,120]
[358240116,1744866643551,-503.02,0.00052054,120]
[358240117,1744866643561,-504.2,0.00052054,120]
[358240118,1744866643571,-1098.37,0.00052054,120]
[358240119,1744866643580,-500.0,0.00052054,120]
[358240120,1744866643590,-500.0,0.00052054,120]
[358240121,1744866643599,-500.0,0.00052054,120]
[358240122,1744866643609,-500.0,0.00052054,120]
[358240123,1744866643618,-500.0,0.00052054,120]
[358240124,1744866643627,-828.26,0.00052054,120]
[358240125,1744866643636,-500.0,0.00052054,120]
[358240126,1744866643646,-500.0,0.00052054,120]
[358240127,1744866643656,-500.0,0.00052054,120]
[358240128,1744866643664,-500.0,0.00052054,120]
[358240129,1744866643673,-500.0,0.00052054,120]
[358240130,1744866643683,-820.64,0.00052054,120]
[358240131,1744866643693,-500.0,0.00052054,120]
[358240132,1744866643702,-500.0,0.00052054,120]
[358240133,1744866643711,-500.0,0.00052054,120]
[358240134,1744866643721,-500.0,0.00052054,120]
[358240135,1744866643730,-500.0,0.00052054,120]
[358240136,1744866643740,-500.0,0.00052054,120]
[358240137,1744866643750,-500.0,0.00052054,120]
[358240138,1744866643760,-1040.34,0.00052054,120]
[358240139,1744866643769,-500.0,0.00052054,120]
[358240140,1744866643778,-500.0,0.00052054,120]
[358240141,1744866643787,-511.53274264,0.00052054,120]
[358240142,1744866643796,-500.0,0.00052054,120]
[358240143,1744866643805,-500.0,0.00052054,120]
[358240144,1744866643814,-500.0,0.00052054,120]
[358240145,1744866643823,-1227.56,0.00052054,120]
[358240146,1744866643832,-973.62,0.00052054,120]
[358240147,1744866643841,-500.0,0.00052054,120]
[358240148,1744866643850,-500.0,0.00052054,120]
[358240149,1744866643859,-799.83,0.00052054,120]
[358240150,1744866643868,-500.0,0.00052054,120]
[358240151,1744866643877,-510.76451233,0.00052054,120]
[358240152,1744866643886,-500.0,0.00052054,120]
[358240153,1744866643896,-820.75,0.00052054,120]
[358240154,1744866643905,-500.0,0.00052054,120]
[358240155,1744866643915,-836.32,0.00052054,120]
[358240156,1744866643923,-500.0,0.00052054,120]
[358240157,1744866643932,-1547.92,0.00052054,120]
[358240158,1744866643940,-500.0,0.00052054,120]
[358240159,1744866643950,-556.39,0.00052054,120]
[358240160,1744866643959,-500.0,0.00052054,120]
[358240161,1744866643971,-500.0,0.00052054,120]
[358240162,1744866643981,-500.0,0.00052054,120]
[358240163,1744866643991,-500.0,0.00052054,120]
[358240164,1744866644001,-500.0,0.00052054,120]
[358240165,1744866644011,-500.0,0.00052054,120]
[358240166,1744866644020,-500.0,0.00052054,120]
[358240167,1744866644030,-500.0,0.00052054,120]
[358240168,1744866644040,-713.2,0.00052054,120]
[358240169,1744866644049,-500.0,0.00052054,120]
[358240170,1744866644059,-504.51,0.00052054,120]
[358240171,1744866644068,-500.0,0.00052054,120]
[358240172,1744866644078,-500.0,0.00052054,120]
[358240173,1744866644088,-578.24,0.00052054,120]
[358240174,1744866644097,-500.0,0.00052054,120]
[358240175,1744866644107,-500.0,0.00052054,120]
[358240176,1744866644116,-1124.28,0.00052054,120]
[358240177,1744866644126,-1591.03,0.00052054,120]
[358240178,1744866644136,-1689.48,0.00052054,120]
[358240179,1744866644145,-500.0,0.00052054,120]
[358240180,1744866644155,-758.69,0.00052054,120]
[358240181,1744866644165,-614.01,0.00052054,120]
[358240182,1744866644175,-562.14850365,0.00052054,120]
[358240183,1744866644185,-579.87,0.00052054,120]
[358240184,1744866644198,-500.0,0.00052054,120]
[358240185,1744866644207,-654.83,0.00052054,120]
[358240186,1744866644217,-500.0,0.00052054,120]
[358240187,1744866644228,-6223.75,0.00052054,120]
[358240188,1744866644239,-500.0,0.00052054,120]
[358240189,1744866644249,-500.0,0.00052054,120]
[358240190,1744866644259,-500.0,0.00052054,30]
[358240191,1744866644270,-1297.95,0.00052054,120]
[358240192,1744866644280,-1137.82,0.00052054,120]
[358240193,1744866644290,-782.39,0.00052054,120]
[358240194,1744866644300,-1463.8,0.00052054,120]
[358240195,1744866644309,-1047.03,0.00052054,120]
[358240196,1744866644320,-500.0,0.00052054,120]
[358240197,1744866644329,-500.0,0.00052054,120]
[358240198,1744866644339,-534.84057992,0.00052054,120]
[358240199,1744866644348,-1116.68,0.00052054,120]
[358240200,1744866644357,-500.0,0.00052054,120]
[358240201,1744866644368,-500.0,0.00052054,120]
[358240202,1744866644377,-1489.93,0.00052054,120]
[358240203,1744866644387,-500.0,0.00052054,120]
[358240204,1744866644397,-708.43,0.00052054,120]
[358240205,1744866644407,-500.0,0.00052054,120]
[358240206,1744866644416,-500.0,0.00052054,120]
[358240207,1744866644426,-515.39653823,0.00052054,120]
[358240208,1744866644435,-500.0,0.00052054,120]
[358240209,1744866644444,-757.88,0.00052054,120]
[358240210,1744866644454,-500.0,0.00052054,120]
[358240211,1744866644463,-2217.9,0.00052054,120]
[358240212,1744866644472,-998.55,0.00052054,120]
[358240213,1744866644482,-500.0,0.00052054,120]
[358240214,1744866644491,-500.0,0.00052054,120]
[358240215,1744866644501,-500.0,0.00052054,120]
[358240216,1744866644510,-500.0,0.00052054,120]
[358240217,1744866644519,-1849.97,0.00052054,120]
[358240218,1744866644529,-511.32855249,0.00052054,120]
[358240219,1744866644539,-500.0,0.00052054,120]
[358240220,1744866644548,-942.42,0.00052054,120]
[358240221,1744866644557,-831.36,0.00052054,120]
[358240222,1744866644566,-886.19,0.00052054,30]
[358240223,1744866644575,-500.0,0.00052054,120]
[358240224,1744866644586,-1576.64,0.00052054,120]
[358240225,1744866644595,-761.55,0.00052054,120]
[358240226,1744866644605,-500.0,0.00052054,120]
[358240227,1744866644615,-749.41,0.00052054,120]
[358240228,1744866644624,-566.0,0.00052054,120]
[358240229,1744866644634,-500.0,0.00052054,30]
[358240230,1744866644643,-2173.71,0.00052054,120]
[358240231,1744866644653,-634.6,0.00052054,120]
[358240232,1744866644662,-500.0,0.00052054,120]
[358240233,1744866644672,-534.89,0.00052054,120]
[358240234,1744866644681,-500.0,0.00052054,120]
[358240235,1744866644691,-579.27,0.00052054,120]
[358240236,1744866644700,-1084.76,0.00052054,120]
[358240237,1744866644710,-234.8220412,0.00052054,120]
[358240238,1744866644720,-801.67,0.00052054,120]
[358240239,1744866644730,-300.0,0.00052054,120]
[358240240,1744866644739,-1234.44,0.00052054,120]
[358240241,1744866644749,-1453.55,0.00052054,120]
[358240242,1744866644759,-500.0,0.00052054,120]
[358240243,1744866644769,-592.59,0.00052054,120]
[358240244,1744866644779,-500.0,0.00052054,120]
[358240245,1744866644789,-500.0,0.00052054,120]
[358240246,1744866644799,-500.0,0.00052054,120]
[358240247,1744866644808,-500.0,0.00052054,120]
[358240248,1744866644817,-1004.22,0.00052054,120]
[358240249,1744866644828,-500.0,0.00052054,120]
[358240250,1744866644838,-1201.75,0.00052054,120]
[358240251,1744866644848,-500.0,0.00052054,120]
[358240252,1744866644857,-556.83516564,0.00052054,120]
[358240253,1744866644867,-502.23,0.00052054,120]
[358240254,1744866644878,-500.0,0.00052054,120]
[358240255,1744866644888,-552.08,0.00052054,120]
[358240256,1744866644897,-238.70350806,0.00052054,120]
[358240257,1744866644907,-500.0,0.00052054,120]
[358240258,1744866644917,-548.3276664,0.00052054,120]
[358240259,1744866644926,-500.0,0.00052054,120]
[358240260,1744866644935,-1426.03,0.00052054,120]
[358240261,1744866644945,-500.0,0.00052054,120]
[358240262,1744866644954,-500.0,0.00052054,120]
[358240263,1744866644965,-500.0,0.00052054,120]
[358240264,1744866644975,-594.04,0.00052054,120]
[358240265,1744866644984,-609.76,0.00052054,120]
[358240266,1744866644994,-562.66,0.00052054,120]
[358240267,1744866645004,-1294.76,0.00052054,120]
[358240268,1744866645013,-500.0,0.00052054,120]
[358240269,1744866645023,-500.0,0.00052054,120]
[358240270,1744866645033,-1424.87,0.00052054,120]
[358240271,1744866645042,-610.05,0.00052054,120]
[358240272,1744866645051,-509.67,0.00052054,120]
[358240273,1744866645061,-500.0,0.00052054,120]
[358240274,1744866645071,-1248.43,0.00052054,120]
[358240275,1744866645081,-500.0,0.00052054,120]
[358240276,1744866645090,-500.0,0.00052054,120]
[358240277,1744866645101,-508.95900977,0.00052054,120]
[358240278,1744866645110,-500.0,0.00052054,120]
[358240279,1744866645120,-464.59750644,0.00052054,120]
[358240280,1744866645130,-823.17,0.00052054,120]
[358240281,1744866645139,-655.33,0.00052054,120]
[358240282,1744866645149,-500.0,0.00052054,120]
[358240283,1744866645159,-500.0,0.00052054,120]
[358240284,1744866645168,-500.0,0.00052054,120]
[358240285,1744866645178,-1174.2,0.00052054,120]
[358240286,1744866645191,-500.0,0.00052054,120]
[358240287,1744866645201,-500.0,0.00052054,120]
[358240288,1744866645212,-1721.26,0.00052054,120]
[358240289,1744866645221,-500.0,0.00052054,120]
[358240290,1744866645233,-543.09604497,0.00052054,120]
[358240291,1744866645242,-500.0,0.00052054,120]
[358240292,1744866645252,-3500.0,0.00052054,10]
[358240293,1744866645263,-500.0,0.00052054,120]
[358240294,1744866645272,-1805.75,0.00052054,120]
[358240295,1744866645283,-297.17772037,0.00052054,120]
[358240296,1744866645292,-608.85,0.00052054,120]
[358240297,1744866645302,-500.0,0.00052054,120]
[358240298,1744866645311,-506.49131522,0.00052054,120]
[358240299,1744866645320,-500.0,0.00052054,120]
[358240300,1744866645330,-1251.98,0.00052054,120]
[358240301,1744866645339,-500.0,0.00052054,120]
[358240302,1744866645349,-1636.09,0.00052054,120]
[358240303,1744866645359,-500.0,0.00052054,120]
[358240304,1744866645368,-500.0,0.00052054,120]
[358240305,1744866645378,-1187.11,0.00052054,120]
[358240306,1744866645387,-518.5418252,0.00052054,120]
[358240307,1744866645396,-500.0,0.00052054,120]
[358240308,1744866645406,-500.0,0.00052054,120]
[358240309,1744866645415,-500.0,0.00052054,120]
[358240310,1744866645424,-500.0,0.00052054,120]
[358240311,1744866645434,-500.0,0.00052054,120]
[358240312,1744866645443,-1125.34,0.00052054,120]
[358240313,1744866645452,-500.0,0.00052054,120]
[358240314,1744866645462,-500.0,0.00052054,120]
[358240315,1744866645472,-1543.92,0.00052054,120]
[358240316,1744866645481,-500.0,0.00052054,120]
[358240317,1744866645492,-500.0,0.00052054,120]
[358240318,1744866645502,-2182.99,0.00052054,120]
[358240320,1744866645511,-500.0,0.00052054,120]
[358240321,1744866645521,-996.08,0.00052054,120]
[358240322,1744866645531,-500.0,0.00052054,120]
[358240323,1744866645540,-500.0,0.00052054,120]
[358240324,1744866645550,-1486.69,0.00052054,120]
[358240325,1744866645559,-160.87267947,0.00052054,120]
[358240326,1744866645569,-500.0,0.00052054,120]
[358240327,1744866645578,-1615.36,0.00052054,120]
[358240328,1744866645588,-500.0,0.00052054,120]
[358240329,1744866645597,-1798.12,0.00052054,120]
[358240330,1744866645607,-1006.58,0.00052054,120]
[358240331,1744866645616,-500.91895059,0.00052054,120]
[358240332,1744866645625,-685.33,0.00052054,120]
[358240333,1744866645635,-500.0,0.00052054,120]
[358240334,1744866645644,-666.57,0.00052054,120]
[358240335,1744866645653,-500.0,0.00052054,120]
[358240336,1744866645663,-500.0,0.00052054,120]
[358240337,1744866645672,-500.0,0.00052054,120]
[358240338,1744866645682,-500.0,0.00052054,120]
[358240339,1744866645691,-500.0,0.00052054,120]
[358240340,1744866645701,-500.0,0.00052054,120]
[358240341,1744866645711,-500.0,0.00052054,120]
[358240342,1744866645721,-500.0,0.00052054,120]
[358240343,1744866645731,-500.0,0.00052054,120]
[358240344,1744866645740,-586.65839313,0.00052054,120]
[358240345,1744866645750,-616.81,0.00052054,120]
[358240346,1744866645760,-500.0,0.00052054,120]
[358240347,1744866645769,-558.42,0.00052054,30]
[358240348,1744866645779,-558.04,0.00052054,120]
[358240349,1744866645790,-500.0,0.00052054,120]
[358240350,1744866645800,-500.0,0.00052054,120]
[358240351,1744866645809,-500.0,0.00052054,120]
[358240352,1744866645819,-500.0,0.00052054,120]
[358240353,1744866645828,-500.0,0.00052054,120]
[358240354,1744866645838,-548.04,0.00052054,120]
[358240355,1744866645847,-500.0,0.00052054,120]
[358240356,1744866645856,-500.0,0.00052054,120]
[358240357,1744866645866,-500.0,0.00052054,120]
[358240358,1744866645876,-871.69,0.00052054,120]
[358240359,1744866645885,-732.35,0.00052054,120]
[358240360,1744866645894,-500.0,0.00052054,120]
[358240361,1744866645903,-500.0,0.00052054,120]
[358240362,1744866645913,-500.0,0.00052054,120]
[358240363,1744866645923,-1283.39,0.00052054,120]
[358240364,1744866645933,-500.0,0.00052054,120]
[358240365,1744866645942,-500.0,0.00052054,120]
[358240366,1744866645951,-500.0,0.00052054,120]
[358240367,1744866645961,-568.84,0.00052054,120]
[358240368,1744866645971,-500.0,0.00052054,120]
[358240369,1744866645982,-500.0,0.00052054,120]
[358240370,1744866645991,-500.0,0.00052054,120]
[358240371,1744866646002,-1455.57,0.00052054,120]
[358240372,1744866646011,-1006.42,0.00052054,120]
[358240374,1744866646021,-500.0,0.00052054,120]
[358240376,1744866646030,-523.61,0.00052054,120]
[358240377,1744866646039,-500.0,0.00052054,120]
[358240378,1744866646049,-500.0,0.00052054,120]
[358240379,1744866646058,-500.0,0.00052054,120]
[358240380,1744866646068,-1992.0,0.00052054,120]
[358240382,1744866646078,-500.0,0.00052054,120]
[358240383,1744866646088,-500.0,0.00052054,120]
[358240384,1744866646097,-500.0,0.00052054,120]
[358240385,1744866646107,-522.16,0.00052054,120]
[358240386,1744866646117,-804.56,0.00052054,120]
[358240387,1744866646126,-1702.74,0.00052054,120]
[358240389,1744866646136,-500.0,0.00052054,120]
[358240390,1744866646146,-533.28,0.00052054,120]
[358240392,1744866646155,-500.0,0.00052054,120]
[358240393,1744866646164,-1101.32,0.00052054,120]
[358240394,1744866646175,-588.65,0.00052054,120]
[358240395,1744866646185,-500.0,0.00052054,120]
[358240396,1744866646198,-949.07,0.00052054,120]
[358240397,1744866646208,-500.0,0.00052054,120]
[358240398,1744866646217,-496.75682802,0.00052054,120]
[358240399,1744866646227,-829.06,0.00052054,120]
[358240400,1744866646237,-500.0,0.00052054,120]
[358240401,1744866646247,-500.0,0.00052054,120]
[358240402,1744866646256,-500.0,0.00052054,120]